[Event "Titled Tuesday Blitz October 04 Early 2022"]
[White "Tsaruk, Maksim"]
[Black "Gunina, Valentina"]
[WhiteFideId "13511173"]
[BlackFideId "4167570"]
[WhiteElo "2273"]
[BlackElo "2376"]
[Result "1-0"]
[Round "06"]
[TimeControl "180+1"]
[Date "2022.10.04"]
[WhiteClock "0:01:06"]
[BlackClock "0:00:12"]

1. e4 {[%clk 0:02:57]}  c6 {[%clk 0:03:00]} 2. d4 {[%clk 0:02:57]}  d5 {[%clk 0:03:00]} 3. Nd2 {[%clk 0:02:57]}  dxe4 {[%clk 0:03:00]} 4. Nxe4 {[%clk 0:02:58]}  Nf6 {[%clk 0:03:01]} 5. Nxf6+ {[%clk 0:02:59]}  exf6 {[%clk 0:03:01]} 6. Bc4 {[%clk 0:02:59]}  Bd6 {[%clk 0:03:01]} 7. Qe2+ {[%clk 0:02:59]}  Qe7 {[%clk 0:03:00]} 8. Qxe7+ {[%clk 0:02:59]}  Kxe7 {[%clk 0:03:00]} 9. c3 {[%clk 0:02:58]}  Re8 {[%clk 0:02:58]} 10. Ne2 {[%clk 0:02:58]}  Kf8 {[%clk 0:02:58]} 11. Be3 {[%clk 0:02:58]}  Bf5 {[%clk 0:02:58]} 12. Kd2 {[%clk 0:02:56]}  Nd7 {[%clk 0:02:58]} 13. a4 {[%clk 0:02:53]}  Nb6 {[%clk 0:02:58]} 14. Bd3 {[%clk 0:02:53]}  Be6 {[%clk 0:02:58]} 15. Kc2 {[%clk 0:02:49]}  Nc4 {[%clk 0:02:56]} 16. Bf4 {[%clk 0:02:47]}  Rad8 {[%clk 0:02:49]} 17. Bxd6+ {[%clk 0:02:42]}  Nxd6 {[%clk 0:02:49]} 18. Rhe1 {[%clk 0:02:31]}  g5 {[%clk 0:02:46]} 19. a5 {[%clk 0:02:18]}  Kg7 {[%clk 0:02:46]} 20. Ng3 {[%clk 0:02:17]}  f5 {[%clk 0:02:40]} 21. f4 {[%clk 0:02:17]}  f6 {[%clk 0:02:32]} 22. Re2 {[%clk 0:02:07]}  Bd7 {[%clk 0:02:06]} 23. Rf2 {[%clk 0:02:03]}  Ne4 {[%clk 0:01:56]} 24. Bxe4 {[%clk 0:01:53]}  fxe4 {[%clk 0:01:57]} 25. fxg5 {[%clk 0:01:54]}  fxg5 {[%clk 0:01:57]} 26. Re1 {[%clk 0:01:51]}  Kg6 {[%clk 0:01:45]} 27. Kd2 {[%clk 0:01:45]}  c5 {[%clk 0:01:44]} 28. Ke3 {[%clk 0:01:30]}  cxd4+ {[%clk 0:01:43]} 29. cxd4 {[%clk 0:01:30]}  h5 {[%clk 0:01:20]} 30. Ref1 {[%clk 0:01:30]}  Re6 {[%clk 0:01:20]} 31. d5 {[%clk 0:01:22]}  Ra6 {[%clk 0:00:44]} 32. Nxe4 {[%clk 0:01:22]}  Bb5 {[%clk 0:00:44]} 33. Rf6+ {[%clk 0:01:21]}  Kg7 {[%clk 0:00:40]} 34. Rxa6 {[%clk 0:01:21]}  Bxa6 {[%clk 0:00:32]} 35. Rf5 {[%clk 0:01:21]}  Kh6 {[%clk 0:00:23]} 36. Nxg5 {[%clk 0:01:18]}  Kg6 {[%clk 0:00:19]} 37. Re5 {[%clk 0:01:13]}  Rc8 {[%clk 0:00:18]} 38. Ne4 {[%clk 0:01:09]}  Rc2 {[%clk 0:00:18]} 39. d6 {[%clk 0:01:09]}  Re2+ {[%clk 0:00:17]} 40. Kd4 {[%clk 0:01:06]}  Re1 {[%clk 0:00:17]} 41. Nc3 {[%clk 0:01:06]}  Rxe5 {[%clk 0:00:12]} 42. Kxe5 {[%clk 0:01:07]}  Kf7 {[%clk 0:00:12]} 43. Nd5 {[%clk 0:01:07]}  Bf1 {[%clk 0:00:12]} 44. d7 {[%clk 0:01:06]} 1-0


[Site "https://www.chess.com"]

[Event "Titled Tuesday Blitz October 04 Early 2022"]
[White "Abdisalimov, Abdimalik"]
[Black "Bortnyk, Olexandr"]
[WhiteFideId "14206323"]
[BlackFideId "14120828"]
[WhiteElo "2401"]
[BlackElo "2723"]
[Result "0-1"]
[Round "07"]
[TimeControl "180+1"]
[Date "2022.10.04"]
[WhiteClock "0:00:02"]
[BlackClock "0:00:20"]

1. e4 {[%clk 0:03:00]}  Nf6 {[%clk 0:02:57]} 2. e5 {[%clk 0:03:01]}  Nd5 {[%clk 0:02:57]} 3. d4 {[%clk 0:03:01]}  d6 {[%clk 0:02:58]} 4. c4 {[%clk 0:03:02]}  Nb6 {[%clk 0:02:58]} 5. exd6 {[%clk 0:03:03]}  exd6 {[%clk 0:02:59]} 6. Nc3 {[%clk 0:03:04]}  Be7 {[%clk 0:03:00]} 7. Bd3 {[%clk 0:03:04]}  O-O {[%clk 0:03:00]} 8. Nge2 {[%clk 0:03:04]}  c6 {[%clk 0:03:00]} 9. O-O {[%clk 0:03:02]}  Na6 {[%clk 0:03:01]} 10. b3 {[%clk 0:03:01]}  d5 {[%clk 0:03:01]} 11. c5 {[%clk 0:03:00]}  Nd7 {[%clk 0:03:01]} 12. a3 {[%clk 0:02:49]}  Nc7 {[%clk 0:03:01]} 13. b4 {[%clk 0:02:45]}  Bf6 {[%clk 0:03:01]} 14. Be3 {[%clk 0:02:44]}  Re8 {[%clk 0:03:00]} 15. Re1 {[%clk 0:02:29]}  Nf8 {[%clk 0:03:00]} 16. h3 {[%clk 0:02:27]}  Bd7 {[%clk 0:02:47]} 17. a4 {[%clk 0:02:22]}  Nce6 {[%clk 0:02:35]} 18. b5 {[%clk 0:02:08]}  b6 {[%clk 0:02:16]} 19. cxb6 {[%clk 0:01:38]}  axb6 {[%clk 0:02:15]} 20. Qb3 {[%clk 0:01:33]}  c5 {[%clk 0:01:53]} 21. Qxd5 {[%clk 0:01:04]}  cxd4 {[%clk 0:01:42]} 22. Nxd4 {[%clk 0:01:05]}  Nc5 {[%clk 0:01:38]} 23. Bc4 {[%clk 0:01:01]}  Nfe6 {[%clk 0:01:34]} 24. Red1 {[%clk 0:00:49]}  Qc7 {[%clk 0:01:01]} 25. Rac1 {[%clk 0:00:42]}  Qa7 {[%clk 0:00:50]} 26. Nc6 {[%clk 0:00:33]}  Bxc6 {[%clk 0:00:49]} 27. bxc6 {[%clk 0:00:29]}  Bxc3 {[%clk 0:00:49]} 28. Rxc3 {[%clk 0:00:29]}  Qxa4 {[%clk 0:00:49]} 29. Bxc5 {[%clk 0:00:26]}  bxc5 {[%clk 0:00:43]} 30. Bb3 {[%clk 0:00:21]}  Qa7 {[%clk 0:00:28]} 31. Qf3 {[%clk 0:00:19]}  Nd4 {[%clk 0:00:28]} 32. Rxd4 {[%clk 0:00:14]}  cxd4 {[%clk 0:00:27]} 33. Rc1 {[%clk 0:00:10]}  Qc7 {[%clk 0:00:25]} 34. Rd1 {[%clk 0:00:05]}  Rad8 {[%clk 0:00:25]} 35. Bd5 {[%clk 0:00:05]}  Re5 {[%clk 0:00:22]} 36. Bb3 {[%clk 0:00:03]}  Rc5 {[%clk 0:00:21]} 37. g3 {[%clk 0:00:02]}  Rc3 {[%clk 0:00:20]} 0-1


[Site "https://www.chess.com"]

[Event "Titled Tuesday Blitz October 04 Early 2022"]
[White "Baskakov, Egor"]
[Black "Kravtsiv, Martyn"]
[WhiteFideId "24197866"]
[BlackFideId "14113147"]
[WhiteElo "2211"]
[BlackElo "2694"]
[Result "0-1"]
[Round "07"]
[TimeControl "180+1"]
[Date "2022.10.04"]
[WhiteClock "0:00:18"]
[BlackClock "0:00:25"]

1. e4 {[%clk 0:03:00]}  e5 {[%clk 0:02:58]} 2. Nc3 {[%clk 0:03:00]}  Nf6 {[%clk 0:02:57]} 3. g3 {[%clk 0:02:59]}  d5 {[%clk 0:02:57]} 4. exd5 {[%clk 0:03:00]}  Nxd5 {[%clk 0:02:57]} 5. Bg2 {[%clk 0:03:00]}  Nxc3 {[%clk 0:02:58]} 6. bxc3 {[%clk 0:03:01]}  Bc5 {[%clk 0:02:57]} 7. d3 {[%clk 0:03:01]}  O-O {[%clk 0:02:56]} 8. Ne2 {[%clk 0:03:02]}  Nc6 {[%clk 0:02:48]} 9. O-O {[%clk 0:03:01]}  Bg4 {[%clk 0:02:48]} 10. h3 {[%clk 0:03:02]}  Be6 {[%clk 0:02:47]} 11. c4 {[%clk 0:02:57]}  Re8 {[%clk 0:02:35]} 12. Be3 {[%clk 0:02:56]}  Bxe3 {[%clk 0:02:28]} 13. fxe3 {[%clk 0:02:57]}  e4 {[%clk 0:02:28]} 14. Nf4 {[%clk 0:02:26]}  Qg5 {[%clk 0:02:27]} 15. Kh2 {[%clk 0:02:25]}  exd3 {[%clk 0:02:21]} 16. cxd3 {[%clk 0:02:26]}  Rad8 {[%clk 0:02:21]} 17. Qe2 {[%clk 0:02:17]}  Ne5 {[%clk 0:02:11]} 18. Rad1 {[%clk 0:02:01]}  b6 {[%clk 0:01:48]} 19. Bd5 {[%clk 0:01:47]}  Bxd5 {[%clk 0:01:34]} 20. cxd5 {[%clk 0:01:48]}  Ng6 {[%clk 0:01:26]} 21. e4 {[%clk 0:01:47]}  Qe7 {[%clk 0:01:20]} 22. Nxg6 {[%clk 0:01:39]}  hxg6 {[%clk 0:01:20]} 23. Qc2 {[%clk 0:01:40]}  f5 {[%clk 0:01:11]} 24. Rde1 {[%clk 0:01:39]}  Qd6 {[%clk 0:01:06]} 25. Qc4 {[%clk 0:01:15]}  Re5 {[%clk 0:01:03]} 26. exf5 {[%clk 0:01:10]}  Rxe1 {[%clk 0:00:58]} 27. Rxe1 {[%clk 0:01:09]}  gxf5 {[%clk 0:00:58]} 28. Re6 {[%clk 0:01:02]}  Qc5 {[%clk 0:00:48]} 29. Qxc5 {[%clk 0:00:39]}  bxc5 {[%clk 0:00:49]} 30. Rc6 {[%clk 0:00:40]}  Rxd5 {[%clk 0:00:48]} 31. Rxc7 {[%clk 0:00:41]}  a6 {[%clk 0:00:37]} 32. Rc6 {[%clk 0:00:39]}  Rxd3 {[%clk 0:00:35]} 33. Rxa6 {[%clk 0:00:38]}  Kf7 {[%clk 0:00:29]} 34. Rc6 {[%clk 0:00:34]}  Rd2+ {[%clk 0:00:29]} 35. Kg1 {[%clk 0:00:34]}  Rc2 {[%clk 0:00:30]} 36. a4 {[%clk 0:00:33]}  Ke7 {[%clk 0:00:29]} 37. a5 {[%clk 0:00:29]}  Kd7 {[%clk 0:00:30]} 38. Rg6 {[%clk 0:00:29]}  c4 {[%clk 0:00:29]} 39. Rxg7+ {[%clk 0:00:27]}  Kc6 {[%clk 0:00:28]} 40. Rg8 {[%clk 0:00:26]}  Kb5 {[%clk 0:00:26]} 41. Rc8 {[%clk 0:00:26]}  Kxa5 {[%clk 0:00:25]} 42. Rc5+ {[%clk 0:00:24]}  Kb4 {[%clk 0:00:24]} 43. Rxf5 {[%clk 0:00:25]}  c3 {[%clk 0:00:25]} 44. Rf8 {[%clk 0:00:23]}  Rd2 {[%clk 0:00:25]} 45. Rc8 {[%clk 0:00:21]}  c2 {[%clk 0:00:25]} 46. h4 {[%clk 0:00:21]}  Rd1+ {[%clk 0:00:24]} 47. Kg2 {[%clk 0:00:21]}  c1=Q {[%clk 0:00:24]} 48. Rxc1 {[%clk 0:00:21]}  Rxc1 {[%clk 0:00:25]} 49. Kf3 {[%clk 0:00:19]}  Kc5 {[%clk 0:00:26]} 50. Kf4 {[%clk 0:00:20]}  Kd6 {[%clk 0:00:26]} 51. Kg5 {[%clk 0:00:20]}  Ke7 {[%clk 0:00:26]} 52. g4 {[%clk 0:00:21]}  Kf7 {[%clk 0:00:26]} 53. Kh6 {[%clk 0:00:21]}  Rc6+ {[%clk 0:00:25]} 54. Kh5 {[%clk 0:00:22]}  Kg7 {[%clk 0:00:25]} 55. g5 {[%clk 0:00:18]}  Rc4 {[%clk 0:00:24]} 56. g6 {[%clk 0:00:18]}  Rc6 {[%clk 0:00:25]} 0-1


[Site "https://www.chess.com"]

[Event "Titled Tuesday Blitz October 04 Early 2022"]
[White "Bortnyk, Mykola"]
[Black "Martinez Alcantara, Jose Eduardo"]
[WhiteFideId "14120836"]
[BlackFideId "3805662"]
[WhiteElo "2582"]
[BlackElo "2703"]
[Result "1/2-1/2"]
[Round "07"]
[TimeControl "180+1"]
[Date "2022.10.04"]
[WhiteClock "0:00:06"]
[BlackClock "0:00:14"]

1. e4 {[%clk 0:03:00]}  e5 {[%clk 0:02:49]} 2. Nf3 {[%clk 0:03:01]}  Nf6 {[%clk 0:02:49]} 3. Nxe5 {[%clk 0:03:01]}  d6 {[%clk 0:02:49]} 4. Nf3 {[%clk 0:03:00]}  Nxe4 {[%clk 0:02:49]} 5. d4 {[%clk 0:03:00]}  Be7 {[%clk 0:02:50]} 6. Bd3 {[%clk 0:03:00]}  Nf6 {[%clk 0:02:51]} 7. c4 {[%clk 0:02:59]}  O-O {[%clk 0:02:51]} 8. Nc3 {[%clk 0:02:58]}  Bg4 {[%clk 0:02:51]} 9. h3 {[%clk 0:02:57]}  Bh5 {[%clk 0:02:51]} 10. Be3 {[%clk 0:02:55]}  Nc6 {[%clk 0:02:49]} 11. O-O {[%clk 0:02:54]}  Bg6 {[%clk 0:02:48]} 12. a3 {[%clk 0:02:49]}  d5 {[%clk 0:02:35]} 13. c5 {[%clk 0:02:47]}  Ne4 {[%clk 0:02:29]} 14. Re1 {[%clk 0:02:39]}  Re8 {[%clk 0:02:24]} 15. Rc1 {[%clk 0:02:32]}  Bf6 {[%clk 0:02:21]} 16. b4 {[%clk 0:02:25]}  a6 {[%clk 0:02:20]} 17. Bb1 {[%clk 0:02:22]}  Nxc3 {[%clk 0:02:19]} 18. Rxc3 {[%clk 0:02:22]}  Be4 {[%clk 0:02:16]} 19. Rc1 {[%clk 0:02:02]}  Qd7 {[%clk 0:02:14]} 20. Bxe4 {[%clk 0:01:55]}  Rxe4 {[%clk 0:02:06]} 21. Nd2 {[%clk 0:01:53]}  Re6 {[%clk 0:02:05]} 22. Nf3 {[%clk 0:01:43]}  Rae8 {[%clk 0:02:05]} 23. Qd3 {[%clk 0:01:40]}  Re4 {[%clk 0:02:04]} 24. Red1 {[%clk 0:01:40]}  h6 {[%clk 0:01:48]} 25. b5 {[%clk 0:01:37]}  axb5 {[%clk 0:01:48]} 26. Qxb5 {[%clk 0:01:37]}  R4e6 {[%clk 0:01:36]} 27. Rb1 {[%clk 0:01:35]}  Ra8 {[%clk 0:01:22]} 28. Qxb7 {[%clk 0:01:33]}  Rxa3 {[%clk 0:01:10]} 29. Ra1 {[%clk 0:01:31]}  Rxa1 {[%clk 0:00:56]} 30. Rxa1 {[%clk 0:01:32]}  Bd8 {[%clk 0:00:55]} 31. Ra8 {[%clk 0:01:28]}  Kh7 {[%clk 0:00:55]} 32. Qb1+ {[%clk 0:01:23]}  Rg6 {[%clk 0:00:50]} 33. Bf4 {[%clk 0:01:13]}  Bf6 {[%clk 0:00:44]} 34. Be5 {[%clk 0:01:02]}  Bxe5 {[%clk 0:00:40]} 35. dxe5 {[%clk 0:01:02]}  Qe7 {[%clk 0:00:29]} 36. Qf5 {[%clk 0:00:55]}  Qe6 {[%clk 0:00:27]} 37. Qf4 {[%clk 0:00:49]}  Qxh3 {[%clk 0:00:21]} 38. Nh4 {[%clk 0:00:30]}  Qe6 {[%clk 0:00:21]} 39. Nxg6 {[%clk 0:00:30]}  Qxg6 {[%clk 0:00:22]} 40. Rc8 {[%clk 0:00:26]}  Qe6 {[%clk 0:00:23]} 41. Rxc7 {[%clk 0:00:25]}  Nxe5 {[%clk 0:00:23]} 42. Qe3 {[%clk 0:00:22]}  Qf5 {[%clk 0:00:21]} 43. f3 {[%clk 0:00:19]}  Ng6 {[%clk 0:00:14]} 44. c6 {[%clk 0:00:15]}  Nf4 {[%clk 0:00:13]} 45. Re7 {[%clk 0:00:09]}  Qg5 {[%clk 0:00:13]} 46. g4 {[%clk 0:00:06]}  Qh4 {[%clk 0:00:13]} 47. Qxf4 {[%clk 0:00:03]}  Qxe7 {[%clk 0:00:14]} 48. c7 {[%clk 0:00:03]}  Qe1+ {[%clk 0:00:14]} 49. Kg2 {[%clk 0:00:03]}  Qe2+ {[%clk 0:00:14]} 50. Kg1 {[%clk 0:00:02]}  Qe1+ {[%clk 0:00:15]} 51. Kg2 {[%clk 0:00:03]}  Qe2+ {[%clk 0:00:15]} 52. Kg3 {[%clk 0:00:04]}  Qe1+ {[%clk 0:00:16]} 53. Kh3 {[%clk 0:00:04]}  Qh1+ {[%clk 0:00:15]} 54. Kg3 {[%clk 0:00:04]}  Qg1+ {[%clk 0:00:14]} 55. Kh3 {[%clk 0:00:05]}  Qh1+ {[%clk 0:00:15]} 56. Kg3 {[%clk 0:00:06]}  Qg1+ {[%clk 0:00:16]} 57. Kh3 {[%clk 0:00:06]}  Qh1+ {[%clk 0:00:14]} 1/2-1/2


[Site "https://www.chess.com"]

[Event "Titled Tuesday Blitz October 04 Early 2022"]
[White "Eljanov, Pavel"]
[Black "Bodnaruk, Anastasia"]
[WhiteFideId "14102951"]
[BlackFideId "4181751"]
[WhiteElo "2601"]
[BlackElo "2332"]
[Result "1-0"]
[Round "07"]
[TimeControl "180+1"]
[Date "2022.10.04"]
[WhiteClock "0:00:07"]
[BlackClock "0:00:02"]

1. c4 {[%clk 0:03:00]}  e5 {[%clk 0:02:58]} 2. g3 {[%clk 0:03:01]}  d6 {[%clk 0:02:57]} 3. Bg2 {[%clk 0:03:00]}  Nc6 {[%clk 0:02:57]} 4. Nc3 {[%clk 0:03:00]}  g6 {[%clk 0:02:57]} 5. e3 {[%clk 0:02:58]}  Bg7 {[%clk 0:02:57]} 6. Nge2 {[%clk 0:02:58]}  f5 {[%clk 0:02:55]} 7. d3 {[%clk 0:02:54]}  Nf6 {[%clk 0:02:55]} 8. O-O {[%clk 0:02:53]}  O-O {[%clk 0:02:55]} 9. Rb1 {[%clk 0:02:53]}  a5 {[%clk 0:02:49]} 10. a3 {[%clk 0:02:53]}  Be6 {[%clk 0:02:48]} 11. Nd5 {[%clk 0:02:53]}  Qd7 {[%clk 0:02:34]} 12. b4 {[%clk 0:02:51]}  axb4 {[%clk 0:02:34]} 13. axb4 {[%clk 0:02:52]}  g5 {[%clk 0:02:25]} 14. b5 {[%clk 0:02:48]}  Na5 {[%clk 0:02:23]} 15. Nec3 {[%clk 0:02:41]}  e4 {[%clk 0:02:12]} 16. b6 {[%clk 0:02:16]}  Bxd5 {[%clk 0:01:45]} 17. Nxd5 {[%clk 0:02:16]}  Nxd5 {[%clk 0:01:40]} 18. cxd5 {[%clk 0:02:17]}  exd3 {[%clk 0:01:33]} 19. Qxd3 {[%clk 0:02:15]}  cxb6 {[%clk 0:01:22]} 20. Bb2 {[%clk 0:02:09]}  Be5 {[%clk 0:01:13]} 21. Bxe5 {[%clk 0:02:02]}  dxe5 {[%clk 0:01:13]} 22. Rxb6 {[%clk 0:01:54]}  e4 {[%clk 0:01:12]} 23. Qd4 {[%clk 0:01:54]}  Qg7 {[%clk 0:01:11]} 24. Qb4 {[%clk 0:01:25]}  Rfc8 {[%clk 0:01:00]} 25. Rd1 {[%clk 0:01:25]}  Qc3 {[%clk 0:00:53]} 26. g4 {[%clk 0:01:20]}  Qc2 {[%clk 0:00:25]} 27. Rb1 {[%clk 0:01:19]}  Rf8 {[%clk 0:00:21]} 28. Qe7 {[%clk 0:01:12]}  fxg4 {[%clk 0:00:20]} 29. Qxg5+ {[%clk 0:01:12]}  Kh8 {[%clk 0:00:20]} 30. Qe5+ {[%clk 0:01:09]}  Kg8 {[%clk 0:00:21]} 31. R6b2 {[%clk 0:01:07]}  Qc4 {[%clk 0:00:16]} 32. Bxe4 {[%clk 0:01:03]}  Rae8 {[%clk 0:00:15]} 33. Qg5+ {[%clk 0:00:59]}  Kh8 {[%clk 0:00:15]} 34. Bg2 {[%clk 0:00:48]}  Rf7 {[%clk 0:00:12]} 35. d6 {[%clk 0:00:45]}  Qc3 {[%clk 0:00:05]} 36. Bf1 {[%clk 0:00:27]}  Nc6 {[%clk 0:00:04]} 37. Rxb7 {[%clk 0:00:24]}  Ne5 {[%clk 0:00:02]} 38. Rxf7 {[%clk 0:00:22]}  Nxf7 {[%clk 0:00:02]} 39. Qd5 {[%clk 0:00:19]}  Ne5 {[%clk 0:00:03]} 40. Bg2 {[%clk 0:00:18]}  Rd8 {[%clk 0:00:02]} 41. Rd1 {[%clk 0:00:17]}  Rd7 {[%clk 0:00:02]} 42. Qd4 {[%clk 0:00:16]}  Qxd4 {[%clk 0:00:02]} 43. Rxd4 {[%clk 0:00:17]}  h5 {[%clk 0:00:02]} 44. h3 {[%clk 0:00:17]}  Kg7 {[%clk 0:00:01]} 45. hxg4 {[%clk 0:00:14]}  hxg4 {[%clk 0:00:02]} 46. Kf1 {[%clk 0:00:11]}  Kf6 {[%clk 0:00:02]} 47. Ke2 {[%clk 0:00:10]}  Ke6 {[%clk 0:00:02]} 48. Bd5+ {[%clk 0:00:08]}  Kf6 {[%clk 0:00:02]} 49. Bb3 {[%clk 0:00:07]}  Rb7 {[%clk 0:00:02]} 50. Ba4 {[%clk 0:00:07]} 1-0


[Site "https://www.chess.com"]

[Event "Titled Tuesday Blitz October 04 Early 2022"]
[White "Gan-Od, Sereenen"]
[Black "Kim, Sergey"]
[WhiteFideId "4901304"]
[BlackFideId "13700570"]
[WhiteElo "2316"]
[BlackElo "2623"]
[Result "1-0"]
[Round "07"]
[TimeControl "180+1"]
[Date "2022.10.04"]
[WhiteClock "0:01:06"]
[BlackClock "0:00:02"]

1. Nf3 {[%clk 0:02:55]}  Nf6 {[%clk 0:03:00]} 2. g3 {[%clk 0:02:55]}  g6 {[%clk 0:03:00]} 3. Bg2 {[%clk 0:02:56]}  Bg7 {[%clk 0:03:00]} 4. O-O {[%clk 0:02:57]}  O-O {[%clk 0:03:00]} 5. d3 {[%clk 0:02:57]}  d6 {[%clk 0:03:01]} 6. c4 {[%clk 0:02:57]}  e5 {[%clk 0:02:58]} 7. Nc3 {[%clk 0:02:58]}  c6 {[%clk 0:02:57]} 8. Bg5 {[%clk 0:02:58]}  h6 {[%clk 0:02:57]} 9. Bxf6 {[%clk 0:02:57]}  Qxf6 {[%clk 0:02:57]} 10. Rb1 {[%clk 0:02:58]}  Qd8 {[%clk 0:02:43]} 11. b4 {[%clk 0:02:53]}  a6 {[%clk 0:02:43]} 12. a4 {[%clk 0:02:43]}  Nd7 {[%clk 0:02:42]} 13. b5 {[%clk 0:02:40]}  axb5 {[%clk 0:02:36]} 14. axb5 {[%clk 0:02:40]}  c5 {[%clk 0:02:37]} 15. Nd2 {[%clk 0:02:37]}  f5 {[%clk 0:02:36]} 16. Nd5 {[%clk 0:02:35]}  Nf6 {[%clk 0:01:06]} 17. Qc2 {[%clk 0:02:33]}  Nxd5 {[%clk 0:01:02]} 18. cxd5 {[%clk 0:02:34]}  f4 {[%clk 0:00:59]} 19. Ne4 {[%clk 0:02:28]}  g5 {[%clk 0:00:52]} 20. Ra1 {[%clk 0:02:26]}  Rb8 {[%clk 0:00:51]} 21. Qc4 {[%clk 0:02:12]}  Kh8 {[%clk 0:00:46]} 22. Ra7 {[%clk 0:02:09]}  g4 {[%clk 0:00:45]} 23. Qa4 {[%clk 0:02:03]}  f3 {[%clk 0:00:34]} 24. exf3 {[%clk 0:02:02]}  gxf3 {[%clk 0:00:35]} 25. Bh1 {[%clk 0:02:03]}  Bg4 {[%clk 0:00:28]} 26. Qa5 {[%clk 0:01:57]}  Qe7 {[%clk 0:00:24]} 27. Qb6 {[%clk 0:01:53]}  Rfd8 {[%clk 0:00:20]} 28. Rfa1 {[%clk 0:01:49]}  Bf8 {[%clk 0:00:20]} 29. Qa5 {[%clk 0:01:41]}  h5 {[%clk 0:00:19]} 30. Qd2 {[%clk 0:01:36]}  Bg7 {[%clk 0:00:15]} 31. Qg5 {[%clk 0:01:31]}  Qf7 {[%clk 0:00:11]} 32. Qe3 {[%clk 0:01:18]}  Qg6 {[%clk 0:00:11]} 33. Qg5 {[%clk 0:01:14]}  Qf7 {[%clk 0:00:09]} 34. b6 {[%clk 0:01:11]}  Qxd5 {[%clk 0:00:07]} 35. h3 {[%clk 0:01:10]}  Be6 {[%clk 0:00:05]} 36. Qxh5+ {[%clk 0:01:08]}  Kg8 {[%clk 0:00:05]} 37. Ng5 {[%clk 0:01:08]}  Bf5 {[%clk 0:00:03]} 38. Bxf3 {[%clk 0:01:07]}  Qd4 {[%clk 0:00:02]} 39. Qf7+ {[%clk 0:01:06]} 1-0


[Site "https://www.chess.com"]

[Event "Titled Tuesday Blitz October 04 Early 2022"]
[White "Hakobyan, Aram"]
[Black "Duda, Jan-Krzysztof"]
[WhiteFideId "13306677"]
[BlackFideId "1170546"]
[WhiteElo "2563"]
[BlackElo "2779"]
[Result "0-1"]
[Round "07"]
[TimeControl "180+1"]
[Date "2022.10.04"]
[WhiteClock "0:00:14"]
[BlackClock "0:00:43"]

1. e4 {[%clk 0:03:00]}  c6 {[%clk 0:02:58]} 2. d4 {[%clk 0:03:00]}  d5 {[%clk 0:02:58]} 3. exd5 {[%clk 0:03:01]}  cxd5 {[%clk 0:02:58]} 4. Nf3 {[%clk 0:03:02]}  Nc6 {[%clk 0:02:59]} 5. c3 {[%clk 0:03:03]}  Bg4 {[%clk 0:02:54]} 6. h3 {[%clk 0:03:03]}  Bh5 {[%clk 0:02:54]} 7. Qb3 {[%clk 0:03:04]}  Qc7 {[%clk 0:02:24]} 8. Qxd5 {[%clk 0:03:03]}  Nf6 {[%clk 0:02:24]} 9. Qb5 {[%clk 0:02:55]}  Bxf3 {[%clk 0:02:18]} 10. gxf3 {[%clk 0:02:56]}  O-O-O {[%clk 0:02:19]} 11. Be3 {[%clk 0:02:44]}  e5 {[%clk 0:02:16]} 12. dxe5 {[%clk 0:02:42]}  Nxe5 {[%clk 0:02:17]} 13. f4 {[%clk 0:02:33]}  Nf3+ {[%clk 0:01:40]} 14. Ke2 {[%clk 0:02:33]}  Rd5 {[%clk 0:01:41]} 15. Qa4 {[%clk 0:02:22]}  Nh4 {[%clk 0:01:37]} 16. Nd2 {[%clk 0:02:04]}  Bc5 {[%clk 0:01:36]} 17. Qc4 {[%clk 0:01:29]}  Re8 {[%clk 0:01:30]} 18. Nb3 {[%clk 0:01:05]}  Re4 {[%clk 0:01:21]} 19. Nd4 {[%clk 0:01:01]}  b5 {[%clk 0:00:51]} 20. Qd3 {[%clk 0:00:52]}  Bxd4 {[%clk 0:00:45]} 21. cxd4 {[%clk 0:00:51]}  Rdxd4 {[%clk 0:00:45]} 22. Qb3 {[%clk 0:00:38]}  Nd5 {[%clk 0:00:45]} 23. Ke1 {[%clk 0:00:15]}  Qa5+ {[%clk 0:00:43]} 24. Ke2 {[%clk 0:00:14]} 0-1


[Site "https://www.chess.com"]

[Event "Titled Tuesday Blitz October 04 Early 2022"]
[White "Harsha Bharathakoti"]
[Black "Rastbod, Ali"]
[WhiteFideId "5078776"]
[BlackFideId "12567477"]
[WhiteElo "2523"]
[BlackElo "2248"]
[Result "1-0"]
[Round "07"]
[TimeControl "180+1"]
[Date "2022.10.04"]
[WhiteClock "0:00:02"]
[BlackClock "0:00:05"]

1. c4 {[%clk 0:03:00]}  e5 {[%clk 0:02:59]} 2. Nc3 {[%clk 0:02:57]}  Bb4 {[%clk 0:02:57]} 3. Nd5 {[%clk 0:02:56]}  Bc5 {[%clk 0:02:57]} 4. b4 {[%clk 0:02:55]}  Bd4 {[%clk 0:02:46]} 5. Rb1 {[%clk 0:02:52]}  c6 {[%clk 0:02:46]} 6. Ne3 {[%clk 0:02:51]}  d5 {[%clk 0:02:41]} 7. cxd5 {[%clk 0:02:47]}  cxd5 {[%clk 0:02:42]} 8. Nf3 {[%clk 0:02:48]}  Nf6 {[%clk 0:02:39]} 9. g3 {[%clk 0:02:38]}  O-O {[%clk 0:02:35]} 10. Bg2 {[%clk 0:02:38]}  Bxe3 {[%clk 0:02:35]} 11. dxe3 {[%clk 0:02:38]}  Bf5 {[%clk 0:02:25]} 12. Ra1 {[%clk 0:02:22]}  Re8 {[%clk 0:02:25]} 13. O-O {[%clk 0:02:22]}  Be4 {[%clk 0:02:24]} 14. Bb2 {[%clk 0:02:22]}  Qd6 {[%clk 0:02:24]} 15. Qb3 {[%clk 0:02:12]}  Nbd7 {[%clk 0:02:24]} 16. Rfd1 {[%clk 0:02:08]}  Rac8 {[%clk 0:02:24]} 17. Bh3 {[%clk 0:02:05]}  Bc2 {[%clk 0:02:23]} 18. Qa3 {[%clk 0:02:00]}  Bxd1 {[%clk 0:02:18]} 19. Rxd1 {[%clk 0:02:01]}  Rc2 {[%clk 0:02:11]} 20. Ne1 {[%clk 0:01:56]}  Rc6 {[%clk 0:01:58]} 21. Nd3 {[%clk 0:01:50]}  a6 {[%clk 0:01:53]} 22. Qb3 {[%clk 0:01:49]}  b5 {[%clk 0:01:52]} 23. a4 {[%clk 0:01:42]}  Rc4 {[%clk 0:01:52]} 24. axb5 {[%clk 0:01:40]}  axb5 {[%clk 0:01:53]} 25. Qa2 {[%clk 0:01:31]}  Nf8 {[%clk 0:01:44]} 26. Qa5 {[%clk 0:01:22]}  Qb8 {[%clk 0:01:18]} 27. Qa1 {[%clk 0:01:13]}  N6d7 {[%clk 0:01:05]} 28. Bg2 {[%clk 0:01:06]}  Qd6 {[%clk 0:00:33]} 29. Qa5 {[%clk 0:00:23]}  Rb8 {[%clk 0:00:33]} 30. Qa1 {[%clk 0:00:21]}  d4 {[%clk 0:00:30]} 31. exd4 {[%clk 0:00:20]}  exd4 {[%clk 0:00:31]} 32. Nf4 {[%clk 0:00:16]}  Qxb4 {[%clk 0:00:25]} 33. Bxd4 {[%clk 0:00:16]}  Qa4 {[%clk 0:00:15]} 34. Bxg7 {[%clk 0:00:16]}  Qxa1 {[%clk 0:00:15]} 35. Bxa1 {[%clk 0:00:17]}  b4 {[%clk 0:00:11]} 36. Nd5 {[%clk 0:00:14]}  h6 {[%clk 0:00:07]} 37. Ne7+ {[%clk 0:00:09]}  Kh7 {[%clk 0:00:07]} 38. Bh3 {[%clk 0:00:09]}  Nc5 {[%clk 0:00:03]} 39. Bf5+ {[%clk 0:00:10]}  Ng6 {[%clk 0:00:03]} 40. h4 {[%clk 0:00:10]}  h5 {[%clk 0:00:03]} 41. Kg2 {[%clk 0:00:06]}  b3 {[%clk 0:00:04]} 42. Bb2 {[%clk 0:00:03]}  Na4 {[%clk 0:00:04]} 43. Bf6 {[%clk 0:00:03]}  b2 {[%clk 0:00:04]} 44. Nxg6 {[%clk 0:00:03]}  fxg6 {[%clk 0:00:04]} 45. Rd7+ {[%clk 0:00:04]}  Kg8 {[%clk 0:00:05]} 46. Be6+ {[%clk 0:00:04]}  Kf8 {[%clk 0:00:05]} 47. Rh7 {[%clk 0:00:02]} 1-0


[Site "https://www.chess.com"]